[Event "Titled Tuesday Blitz May 30 Late 2023"]
[White "Tissir, Mohamed"]
[Black "Tanenbaum, Zachary"]
[WhiteFideId "9000240"]
[BlackFideId "2060850"]
[WhiteElo "2458"]
[BlackElo "2175"]
[Result "1/2-1/2"]
[Round "06"]
[TimeControl "180+2"]
[Date "2023.05.31"]
[WhiteClock "0:00:29"]
[BlackClock "0:00:08"]

1. e4 {[%clk 0:03:00]}  e5 {[%clk 0:02:58]} 2. Nf3 {[%clk 0:03:00]}  Nc6 {[%clk 0:02:58]} 3. Bc4 {[%clk 0:02:59]}  Nf6 {[%clk 0:02:58]} 4. d3 {[%clk 0:02:59]}  Be7 {[%clk 0:02:58]} 5. O-O {[%clk 0:02:58]}  O-O {[%clk 0:02:58]} 6. Re1 {[%clk 0:02:58]}  d6 {[%clk 0:02:57]} 7. c3 {[%clk 0:02:58]}  Na5 {[%clk 0:02:57]} 8. Bb5 {[%clk 0:02:58]}  a6 {[%clk 0:02:57]} 9. Ba4 {[%clk 0:02:33]}  b5 {[%clk 0:02:57]} 10. Bc2 {[%clk 0:02:32]}  c5 {[%clk 0:02:57]} 11. Nbd2 {[%clk 0:02:32]}  Re8 {[%clk 0:02:55]} 12. Nf1 {[%clk 0:02:32]}  Bf8 {[%clk 0:02:55]} 13. Ng3 {[%clk 0:02:32]}  h6 {[%clk 0:02:48]} 14. h3 {[%clk 0:02:31]}  Nc6 {[%clk 0:02:47]} 15. d4 {[%clk 0:02:28]}  cxd4 {[%clk 0:02:45]} 16. cxd4 {[%clk 0:02:29]}  exd4 {[%clk 0:02:46]} 17. Nxd4 {[%clk 0:02:28]}  Nxd4 {[%clk 0:02:45]} 18. Qxd4 {[%clk 0:02:28]}  Be6 {[%clk 0:02:45]} 19. Bd2 {[%clk 0:02:06]}  Rc8 {[%clk 0:02:43]} 20. Bc3 {[%clk 0:02:07]}  Nd7 {[%clk 0:02:13]} 21. Nf5 {[%clk 0:01:59]}  Qg5 {[%clk 0:02:00]} 22. Nxd6 {[%clk 0:01:44]}  b4 {[%clk 0:01:35]} 23. Nxc8 {[%clk 0:01:25]}  Rxc8 {[%clk 0:01:33]} 24. Bd2 {[%clk 0:01:22]}  Qg6 {[%clk 0:01:26]} 25. Bd1 {[%clk 0:00:35]}  Bc5 {[%clk 0:01:25]} 26. Qd3 {[%clk 0:00:29]}  Ne5 {[%clk 0:01:24]} 27. Qf1 {[%clk 0:00:27]}  Bc4 {[%clk 0:01:21]} 28. Be2 {[%clk 0:00:23]}  Nf3+ {[%clk 0:01:10]} 29. Bxf3 {[%clk 0:00:23]}  Bxf1 {[%clk 0:01:10]} 30. Rxf1 {[%clk 0:00:22]}  Bd4 {[%clk 0:01:07]} 31. Bxb4 {[%clk 0:00:20]}  Rc2 {[%clk 0:01:03]} 32. Ba3 {[%clk 0:00:19]}  Qb6 {[%clk 0:01:00]} 33. Rad1 {[%clk 0:00:19]}  Bxb2 {[%clk 0:00:54]} 34. Bxb2 {[%clk 0:00:18]}  Qxb2 {[%clk 0:00:52]} 35. e5 {[%clk 0:00:19]}  g6 {[%clk 0:00:40]} 36. Bd5 {[%clk 0:00:18]}  Qxe5 {[%clk 0:00:36]} 37. Bb3 {[%clk 0:00:18]}  Rb2 {[%clk 0:00:31]} 38. Rd7 {[%clk 0:00:17]}  Qb5 {[%clk 0:00:22]} 39. Bxf7+ {[%clk 0:00:15]}  Kf8 {[%clk 0:00:21]} 40. Be6 {[%clk 0:00:15]}  Re2 {[%clk 0:00:20]} 41. Bg4 {[%clk 0:00:14]}  h5 {[%clk 0:00:17]} 42. Bxe2 {[%clk 0:00:14]}  Qxd7 {[%clk 0:00:17]} 43. Bxa6 {[%clk 0:00:14]}  Qa4 {[%clk 0:00:15]} 44. Bd3 {[%clk 0:00:14]}  Kg7 {[%clk 0:00:14]} 45. Bb1 {[%clk 0:00:14]}  Qd4 {[%clk 0:00:13]} 46. g3 {[%clk 0:00:13]}  h4 {[%clk 0:00:11]} 47. g4 {[%clk 0:00:12]}  Kh6 {[%clk 0:00:11]} 48. Kg2 {[%clk 0:00:12]}  Kg5 {[%clk 0:00:11]} 49. Re1 {[%clk 0:00:11]}  Qb4 {[%clk 0:00:10]} 50. Rd1 {[%clk 0:00:10]}  Kf4 {[%clk 0:00:10]} 51. Bd3 {[%clk 0:00:09]}  Qb2 {[%clk 0:00:10]} 52. Re1 {[%clk 0:00:09]}  Qxa2 {[%clk 0:00:07]} 53. Re4+ {[%clk 0:00:10]}  Kg5 {[%clk 0:00:07]} 54. Re5+ {[%clk 0:00:10]}  Kf6 {[%clk 0:00:07]} 55. Re3 {[%clk 0:00:11]}  Qd2 {[%clk 0:00:07]} 56. Be4 {[%clk 0:00:11]}  g5 {[%clk 0:00:04]} 57. Bf3 {[%clk 0:00:11]}  Qb2 {[%clk 0:00:03]} 58. Be4 {[%clk 0:00:12]}  Ke5 {[%clk 0:00:02]} 59. Bf5+ {[%clk 0:00:12]}  Kd4 {[%clk 0:00:02]} 60. Re4+ {[%clk 0:00:12]}  Kc3 {[%clk 0:00:02]} 61. Re3+ {[%clk 0:00:13]}  Kd2 {[%clk 0:00:03]} 62. Be4 {[%clk 0:00:12]}  Qd4 {[%clk 0:00:03]} 63. Bf3 {[%clk 0:00:12]}  Qc5 {[%clk 0:00:03]} 64. Re2+ {[%clk 0:00:13]}  Kd3 {[%clk 0:00:03]} 65. Re3+ {[%clk 0:00:14]}  Kd4 {[%clk 0:00:04]} 66. Re4+ {[%clk 0:00:14]}  Kc3 {[%clk 0:00:04]} 67. Re3+ {[%clk 0:00:15]}  Kd2 {[%clk 0:00:04]} 68. Re2+ {[%clk 0:00:15]}  Kc1 {[%clk 0:00:05]} 69. Re3 {[%clk 0:00:16]}  Qd4 {[%clk 0:00:04]} 70. Re1+ {[%clk 0:00:16]}  Kd2 {[%clk 0:00:04]} 71. Rd1+ {[%clk 0:00:17]}  Kc3 {[%clk 0:00:04]} 72. Rxd4 {[%clk 0:00:17]}  Kxd4 {[%clk 0:00:05]} 73. Bb7 {[%clk 0:00:17]}  Ke5 {[%clk 0:00:05]} 74. Bc6 {[%clk 0:00:18]}  Kf4 {[%clk 0:00:05]} 75. Bb7 {[%clk 0:00:18]}  Ke5 {[%clk 0:00:06]} 76. Kf3 {[%clk 0:00:19]}  Kd4 {[%clk 0:00:05]} 77. Be4 {[%clk 0:00:18]}  Ke5 {[%clk 0:00:05]} 78. Bf5 {[%clk 0:00:19]}  Kd4 {[%clk 0:00:05]} 79. Ke2 {[%clk 0:00:19]}  Ke5 {[%clk 0:00:05]} 80. Ke3 {[%clk 0:00:20]}  Kf6 {[%clk 0:00:02]} 81. f4 {[%clk 0:00:21]}  gxf4+ {[%clk 0:00:01]} 82. Kxf4 {[%clk 0:00:21]}  Kg7 {[%clk 0:00:02]} 83. g5 {[%clk 0:00:22]}  Kh8 {[%clk 0:00:03]} 84. Kg4 {[%clk 0:00:23]}  Kg7 {[%clk 0:00:03]} 85. Kxh4 {[%clk 0:00:23]}  Kh8 {[%clk 0:00:04]} 86. Kg4 {[%clk 0:00:24]}  Kg7 {[%clk 0:00:05]} 87. h4 {[%clk 0:00:25]}  Kg8 {[%clk 0:00:06]} 88. h5 {[%clk 0:00:26]}  Kh8 {[%clk 0:00:07]} 89. h6 {[%clk 0:00:27]}  Kg8 {[%clk 0:00:07]} 90. g6 {[%clk 0:00:28]}  Kh8 {[%clk 0:00:08]} 91. Be6 {[%clk 0:00:29]} 1/2-1/2


[Site "https://www.chess.com"]

[Event "Titled Tuesday Blitz May 30 Late 2023"]
[White "Minko, Dmitry"]
[Black "Timmermans, Mark"]
[WhiteFideId "24188468"]
[BlackFideId "1026399"]
[WhiteElo "2147"]
[BlackElo "2460"]
[Result "0-1"]
[Round "06"]
[TimeControl "180+2"]
[Date "2023.05.31"]
[WhiteClock "0:00:02"]
[BlackClock "0:00:20"]

1. e4 {[%clk 0:02:40]}  e5 {[%clk 0:02:59]} 2. Nf3 {[%clk 0:02:40]}  Nc6 {[%clk 0:02:59]} 3. d4 {[%clk 0:02:40]}  exd4 {[%clk 0:02:59]} 4. Nxd4 {[%clk 0:02:41]}  Nf6 {[%clk 0:03:00]} 5. Nc3 {[%clk 0:02:42]}  Bb4 {[%clk 0:02:59]} 6. Nxc6 {[%clk 0:02:42]}  bxc6 {[%clk 0:03:00]} 7. Bd3 {[%clk 0:02:42]}  d5 {[%clk 0:03:00]} 8. exd5 {[%clk 0:02:43]}  O-O {[%clk 0:03:01]} 9. O-O {[%clk 0:02:44]}  cxd5 {[%clk 0:03:00]} 10. Bg5 {[%clk 0:02:43]}  c6 {[%clk 0:03:00]} 11. Qf3 {[%clk 0:02:43]}  Be7 {[%clk 0:03:01]} 12. h3 {[%clk 0:02:43]}  Re8 {[%clk 0:03:01]} 13. Ne2 {[%clk 0:02:30]}  Rb8 {[%clk 0:03:01]} 14. b3 {[%clk 0:02:29]}  h6 {[%clk 0:03:01]} 15. Bh4 {[%clk 0:02:28]}  Rb4 {[%clk 0:03:01]} 16. Bg3 {[%clk 0:01:49]}  Bd6 {[%clk 0:02:59]} 17. Rad1 {[%clk 0:01:36]}  Be6 {[%clk 0:02:49]} 18. c3 {[%clk 0:01:29]}  Rb7 {[%clk 0:02:48]} 19. Nd4 {[%clk 0:01:29]}  c5 {[%clk 0:02:45]} 20. Nf5 {[%clk 0:01:27]}  Bxf5 {[%clk 0:02:34]} 21. Bxf5 {[%clk 0:01:14]}  Bxg3 {[%clk 0:02:34]} 22. Qxg3 {[%clk 0:01:12]}  Rbe7 {[%clk 0:02:27]} 23. Qf3 {[%clk 0:01:08]}  Qa5 {[%clk 0:02:25]} 24. a4 {[%clk 0:00:55]}  Re5 {[%clk 0:02:21]} 25. Bc2 {[%clk 0:00:32]}  Rb8 {[%clk 0:01:47]} 26. Qd3 {[%clk 0:00:24]}  Qc7 {[%clk 0:01:25]} 27. Rfe1 {[%clk 0:00:23]}  g6 {[%clk 0:01:22]} 28. Rxe5 {[%clk 0:00:19]}  Qxe5 {[%clk 0:01:23]} 29. Qd2 {[%clk 0:00:18]}  Re8 {[%clk 0:01:11]} 30. b4 {[%clk 0:00:18]}  cxb4 {[%clk 0:01:06]} 31. cxb4 {[%clk 0:00:19]}  Kg7 {[%clk 0:01:07]} 32. Qd4 {[%clk 0:00:15]}  Qxd4 {[%clk 0:01:03]} 33. Rxd4 {[%clk 0:00:15]}  Re2 {[%clk 0:01:03]} 34. Bb3 {[%clk 0:00:15]}  Re5 {[%clk 0:00:53]} 35. f4 {[%clk 0:00:14]}  Re1+ {[%clk 0:00:40]} 36. Kf2 {[%clk 0:00:15]}  Ra1 {[%clk 0:00:40]} 37. Bxd5 {[%clk 0:00:14]}  Rxa4 {[%clk 0:00:40]} 38. Bc6 {[%clk 0:00:13]}  Ra2+ {[%clk 0:00:39]} 39. Kg3 {[%clk 0:00:14]}  Kf8 {[%clk 0:00:36]} 40. Rd8+ {[%clk 0:00:11]}  Ke7 {[%clk 0:00:36]} 41. Rb8 {[%clk 0:00:12]}  Kd6 {[%clk 0:00:32]} 42. b5 {[%clk 0:00:12]}  Nh5+ {[%clk 0:00:25]} 43. Kf3 {[%clk 0:00:10]}  Ra3+ {[%clk 0:00:25]} 44. Kf2 {[%clk 0:00:05]}  Nxf4 {[%clk 0:00:26]} 45. Rb7 {[%clk 0:00:06]}  f5 {[%clk 0:00:24]} 46. Rh7 {[%clk 0:00:05]}  h5 {[%clk 0:00:24]} 47. h4 {[%clk 0:00:05]}  Ra2+ {[%clk 0:00:22]} 48. Kg3 {[%clk 0:00:05]}  Ne2+ {[%clk 0:00:22]} 49. Kh2 {[%clk 0:00:03]}  Ra4 {[%clk 0:00:22]} 50. g3 {[%clk 0:00:02]}  Rg4 {[%clk 0:00:22]} 51. Rxa7 {[%clk 0:00:01]}  Nxg3 {[%clk 0:00:21]} 52. Rd7+ {[%clk 0:00:01]}  Ke6 {[%clk 0:00:21]} 53. Rd3 {[%clk 0:00:01]}  Ne2 {[%clk 0:00:20]} 54. b6 {[%clk 0:00:01]}  Rxh4+ {[%clk 0:00:19]} 55. Kg2 {[%clk 0:00:02]}  Rb4 {[%clk 0:00:20]} 56. b7 {[%clk 0:00:02]}  Nf4+ {[%clk 0:00:20]} 0-1


[Site "https://www.chess.com"]

[Event "Titled Tuesday Blitz May 30 Late 2023"]
[White "Domingo Nunez, Ruben"]
[Black "Karas, Marek"]
[WhiteFideId "22245570"]
[BlackFideId "14928558"]
[WhiteElo "2404"]
[BlackElo "2233"]
[Result "1-0"]
[Round "06"]
[TimeControl "180+2"]
[Date "2023.05.31"]
[WhiteClock "0:00:17"]
[BlackClock "0:00:02"]

1. c4 {[%clk 0:02:54]}  e5 {[%clk 0:02:59]} 2. b3 {[%clk 0:02:53]}  Nc6 {[%clk 0:02:53]} 3. Bb2 {[%clk 0:02:54]}  Nf6 {[%clk 0:02:53]} 4. d3 {[%clk 0:02:51]}  Bb4+ {[%clk 0:02:53]} 5. Nd2 {[%clk 0:02:51]}  O-O {[%clk 0:02:47]} 6. a3 {[%clk 0:02:51]}  Bxd2+ {[%clk 0:02:44]} 7. Qxd2 {[%clk 0:02:51]}  d6 {[%clk 0:02:44]} 8. g3 {[%clk 0:02:52]}  Bf5 {[%clk 0:02:42]} 9. Bg2 {[%clk 0:02:51]}  Qd7 {[%clk 0:02:33]} 10. Nf3 {[%clk 0:02:43]}  Bh3 {[%clk 0:02:27]} 11. Bxh3 {[%clk 0:02:34]}  Qxh3 {[%clk 0:02:27]} 12. O-O-O {[%clk 0:02:35]}  Rfe8 {[%clk 0:02:22]} 13. Kb1 {[%clk 0:02:34]}  Qf5 {[%clk 0:02:19]} 14. h3 {[%clk 0:02:23]}  e4 {[%clk 0:02:12]} 15. g4 {[%clk 0:02:22]}  Qe6 {[%clk 0:02:08]} 16. Ng5 {[%clk 0:02:20]}  Qe7 {[%clk 0:02:06]} 17. Qf4 {[%clk 0:02:03]}  exd3 {[%clk 0:02:03]} 18. exd3 {[%clk 0:02:04]}  h6 {[%clk 0:01:57]} 19. Nf3 {[%clk 0:01:56]}  Nd7 {[%clk 0:01:49]} 20. g5 {[%clk 0:01:12]}  hxg5 {[%clk 0:01:38]} 21. Nxg5 {[%clk 0:01:13]}  Nde5 {[%clk 0:01:32]} 22. Rhg1 {[%clk 0:01:12]}  Ng6 {[%clk 0:01:30]} 23. Qg3 {[%clk 0:01:04]}  Nce5 {[%clk 0:01:07]} 24. h4 {[%clk 0:00:54]}  Qf6 {[%clk 0:00:59]} 25. h5 {[%clk 0:00:48]}  Nf4 {[%clk 0:00:57]} 26. Ne4 {[%clk 0:00:46]}  Qh6 {[%clk 0:00:55]} 27. Bc1 {[%clk 0:00:46]}  Nexd3 {[%clk 0:00:39]} 28. Rxd3 {[%clk 0:00:36]}  Rxe4 {[%clk 0:00:36]} 29. f3 {[%clk 0:00:36]}  Re6 {[%clk 0:00:01]} 30. Bxf4 {[%clk 0:00:35]}  Qh7 {[%clk 0:00:01]} 31. Kc2 {[%clk 0:00:31]}  Rae8 {[%clk 0:00:02]} 32. Kc3 {[%clk 0:00:31]}  Re2 {[%clk 0:00:02]} 33. Qg5 {[%clk 0:00:17]}  a5 {[%clk 0:00:02]} 34. Qh6 {[%clk 0:00:16]}  Qxh6 {[%clk 0:00:02]} 35. Bxh6 {[%clk 0:00:17]} 1-0


[Site "https://www.chess.com"]

[Event "Titled Tuesday Blitz May 30 Late 2023"]
[White "Filgueira, Hernan"]
[Black "Rosen, Eric"]
[WhiteFideId "101770"]
[BlackFideId "2032562"]
[WhiteElo "2363"]
[BlackElo "2331"]
[Result "0-1"]
[Round "06"]
[TimeControl "180+2"]
[Date "2023.05.31"]
[WhiteClock "0:00:06"]
[BlackClock "0:00:09"]

1. e4 {[%clk 0:02:59]}  c5 {[%clk 0:03:00]} 2. Nf3 {[%clk 0:02:59]}  Nc6 {[%clk 0:03:00]} 3. Bb5 {[%clk 0:02:59]}  e6 {[%clk 0:03:00]} 4. O-O {[%clk 0:02:58]}  Nge7 {[%clk 0:03:00]} 5. Re1 {[%clk 0:02:59]}  a6 {[%clk 0:02:59]} 6. Bf1 {[%clk 0:02:58]}  b5 {[%clk 0:02:59]} 7. a4 {[%clk 0:02:54]}  b4 {[%clk 0:02:57]} 8. d3 {[%clk 0:02:54]}  g6 {[%clk 0:02:48]} 9. Nbd2 {[%clk 0:02:48]}  Bg7 {[%clk 0:02:47]} 10. e5 {[%clk 0:02:47]}  O-O {[%clk 0:02:30]} 11. Nc4 {[%clk 0:02:47]}  Na5 {[%clk 0:02:14]} 12. Nd6 {[%clk 0:02:42]}  Qc7 {[%clk 0:02:04]} 13. Bf4 {[%clk 0:02:40]}  Bb7 {[%clk 0:01:53]} 14. Nxb7 {[%clk 0:02:39]}  Qxb7 {[%clk 0:01:48]} 15. Qd2 {[%clk 0:02:36]}  Nf5 {[%clk 0:01:43]} 16. b3 {[%clk 0:02:30]}  Qd5 {[%clk 0:01:34]} 17. Re4 {[%clk 0:02:24]}  Nc6 {[%clk 0:01:33]} 18. Rae1 {[%clk 0:02:13]}  Ncd4 {[%clk 0:01:31]} 19. Be2 {[%clk 0:02:04]}  Rac8 {[%clk 0:01:26]} 20. Bd1 {[%clk 0:01:59]}  Nxf3+ {[%clk 0:01:16]} 21. Bxf3 {[%clk 0:01:57]}  Nd4 {[%clk 0:01:16]} 22. Bd1 {[%clk 0:01:52]}  f5 {[%clk 0:01:13]} 23. exf6 {[%clk 0:01:46]}  Rxf6 {[%clk 0:01:10]} 24. Be5 {[%clk 0:01:41]}  Rf5 {[%clk 0:01:04]} 25. Bxg7 {[%clk 0:01:33]}  Kxg7 {[%clk 0:01:04]} 26. f4 {[%clk 0:01:26]}  Rcf8 {[%clk 0:00:59]} 27. Bg4 {[%clk 0:01:25]}  R5f6 {[%clk 0:00:53]} 28. h4 {[%clk 0:01:24]}  h5 {[%clk 0:00:51]} 29. Bd1 {[%clk 0:01:19]}  Nf5 {[%clk 0:00:46]} 30. Qf2 {[%clk 0:01:17]}  Qd6 {[%clk 0:00:30]} 31. g3 {[%clk 0:01:15]}  Nd4 {[%clk 0:00:30]} 32. Kh2 {[%clk 0:01:13]}  a5 {[%clk 0:00:29]} 33. Re5 {[%clk 0:01:10]}  Qc7 {[%clk 0:00:27]} 34. Qg2 {[%clk 0:01:07]}  Nf5 {[%clk 0:00:24]} 35. R5e4 {[%clk 0:01:02]}  Nd6 {[%clk 0:00:23]} 36. Re5 {[%clk 0:01:01]}  Nf7 {[%clk 0:00:23]} 37. R5e3 {[%clk 0:01:00]}  Nh6 {[%clk 0:00:23]} 38. Re5 {[%clk 0:00:58]}  Qd6 {[%clk 0:00:20]} 39. Qe4 {[%clk 0:00:55]}  Nf5 {[%clk 0:00:17]} 40. Kh3 {[%clk 0:00:47]}  Nd4 {[%clk 0:00:16]} 41. Qe3 {[%clk 0:00:43]}  Rc8 {[%clk 0:00:15]} 42. Rg5 {[%clk 0:00:42]}  Nf5 {[%clk 0:00:12]} 43. Qe5 {[%clk 0:00:37]}  Kf7 {[%clk 0:00:09]} 44. Qe2 {[%clk 0:00:33]}  Qd4 {[%clk 0:00:08]} 45. Rf1 {[%clk 0:00:30]}  Rh8 {[%clk 0:00:06]} 46. Qe4 {[%clk 0:00:28]}  d5 {[%clk 0:00:05]} 47. Qe2 {[%clk 0:00:27]}  Rd8 {[%clk 0:00:04]} 48. Re1 {[%clk 0:00:27]}  c4 {[%clk 0:00:03]} 49. Qg2 {[%clk 0:00:23]}  cxd3 {[%clk 0:00:03]} 50. cxd3 {[%clk 0:00:23]}  Qxd3 {[%clk 0:00:04]} 51. Bc2 {[%clk 0:00:19]}  Qc3 {[%clk 0:00:04]} 52. Re2 {[%clk 0:00:17]}  Nd4 {[%clk 0:00:04]} 53. Rf2 {[%clk 0:00:15]}  Rc8 {[%clk 0:00:04]} 54. Bb1 {[%clk 0:00:13]}  Qxb3 {[%clk 0:00:04]} 55. Bxg6+ {[%clk 0:00:12]}  Rxg6 {[%clk 0:00:04]} 56. f5 {[%clk 0:00:12]}  Nxf5 {[%clk 0:00:04]} 57. Rgxf5+ {[%clk 0:00:09]}  exf5 {[%clk 0:00:04]} 58. Rxf5+ {[%clk 0:00:08]}  Kg7 {[%clk 0:00:04]} 59. Qf2 {[%clk 0:00:08]}  Rc7 {[%clk 0:00:02]} 60. Qd4+ {[%clk 0:00:06]}  Kh7 {[%clk 0:00:02]} 61. Rxh5+ {[%clk 0:00:06]}  Kg8 {[%clk 0:00:02]} 62. Rh8+ {[%clk 0:00:05]}  Kf7 {[%clk 0:00:03]} 63. Qf4+ {[%clk 0:00:05]}  Ke6 {[%clk 0:00:02]} 64. Qxc7 {[%clk 0:00:02]}  Kf5 {[%clk 0:00:02]} 65. Rf8+ {[%clk 0:00:02]}  Ke4 {[%clk 0:00:02]} 66. Rf4+ {[%clk 0:00:02]}  Ke3 {[%clk 0:00:03]} 67. Qe5+ {[%clk 0:00:01]}  Kd2 {[%clk 0:00:02]} 68. Rf3 {[%clk 0:00:02]}  Qxf3 {[%clk 0:00:02]} 69. Qb2+ {[%clk 0:00:01]}  Kd3 {[%clk 0:00:02]} 70. Qb3+ {[%clk 0:00:01]}  Ke4 {[%clk 0:00:02]} 71. Qb1+ {[%clk 0:00:01]}  Kd4 {[%clk 0:00:02]} 72. Qxg6 {[%clk 0:00:01]}  b3 {[%clk 0:00:02]} 73. Qg4+ {[%clk 0:00:01]}  Qxg4+ {[%clk 0:00:02]} 74. Kxg4 {[%clk 0:00:01]}  b2 {[%clk 0:00:03]} 75. h5 {[%clk 0:00:02]}  b1=Q {[%clk 0:00:04]} 76. h6 {[%clk 0:00:03]}  Qh7 {[%clk 0:00:05]} 77. Kg5 {[%clk 0:00:03]}  Ke4 {[%clk 0:00:05]} 78. g4 {[%clk 0:00:04]}  d4 {[%clk 0:00:06]} 79. Kh5 {[%clk 0:00:04]}  d3 {[%clk 0:00:07]} 80. g5 {[%clk 0:00:05]}  Kf5 {[%clk 0:00:07]} 81. g6 {[%clk 0:00:06]}  Qxg6+ {[%clk 0:00:08]} 82. Kh4 {[%clk 0:00:06]}  Qg4# {[%clk 0:00:09]} 0-1


[Site "https://www.chess.com"]

[Event "Titled Tuesday Blitz May 30 Late 2023"]
[White "Pasti, Aron"]
[Black "Arabidze, Meri"]
[WhiteFideId "785857"]
[BlackFideId "13604040"]
[WhiteElo "2173"]
[BlackElo "2405"]
[Result "0-1"]
[Round "06"]
[TimeControl "180+2"]
[Date "2023.05.31"]
[WhiteClock "0:00:36"]
[BlackClock "0:00:52"]

1. e4 {[%clk 0:03:00]}  c5 {[%clk 0:02:57]} 2. Nf3 {[%clk 0:03:01]}  e6 {[%clk 0:02:58]} 3. d4 {[%clk 0:03:00]}  cxd4 {[%clk 0:02:59]} 4. Nxd4 {[%clk 0:03:01]}  Nc6 {[%clk 0:03:00]} 5. Nc3 {[%clk 0:03:01]}  a6 {[%clk 0:03:00]} 6. Be3 {[%clk 0:03:01]}  Qc7 {[%clk 0:02:58]} 7. g4 {[%clk 0:03:01]}  b5 {[%clk 0:02:53]} 8. Qf3 {[%clk 0:02:51]}  Bb7 {[%clk 0:02:52]} 9. O-O-O {[%clk 0:02:50]}  Rc8 {[%clk 0:02:47]} 10. Nxc6 {[%clk 0:02:25]}  Qxc6 {[%clk 0:02:40]} 11. Bd3 {[%clk 0:02:25]}  Nf6 {[%clk 0:02:27]} 12. g5 {[%clk 0:02:21]}  b4 {[%clk 0:02:27]} 13. Ne2 {[%clk 0:02:16]}  Nxe4 {[%clk 0:02:16]} 14. Nd4 {[%clk 0:02:16]}  Qd5 {[%clk 0:02:16]} 15. Rhg1 {[%clk 0:02:13]}  Nc5 {[%clk 0:02:02]} 16. Qxd5 {[%clk 0:02:11]}  Nxd3+ {[%clk 0:02:01]} 17. Rxd3 {[%clk 0:02:12]}  Bxd5 {[%clk 0:02:01]} 18. Ne2 {[%clk 0:02:05]}  Bc4 {[%clk 0:01:54]} 19. Rd2 {[%clk 0:02:04]}  Bxa2 {[%clk 0:01:46]} 20. Bd4 {[%clk 0:01:55]}  Bd5 {[%clk 0:01:38]} 21. Nf4 {[%clk 0:01:50]}  Bc6 {[%clk 0:01:38]} 22. Nd3 {[%clk 0:01:36]}  a5 {[%clk 0:01:27]} 23. f4 {[%clk 0:01:36]}  Be4 {[%clk 0:01:22]} 24. Nf2 {[%clk 0:01:25]}  Bf5 {[%clk 0:01:21]} 25. Ng4 {[%clk 0:01:23]}  d5 {[%clk 0:01:05]} 26. Ne3 {[%clk 0:01:10]}  Be4 {[%clk 0:01:05]} 27. Re1 {[%clk 0:01:08]}  Rg8 {[%clk 0:01:02]} 28. f5 {[%clk 0:01:07]}  Bc5 {[%clk 0:01:00]} 29. fxe6 {[%clk 0:00:44]}  fxe6 {[%clk 0:01:00]} 30. Be5 {[%clk 0:00:40]}  Rf8 {[%clk 0:00:54]} 31. Bxg7 {[%clk 0:00:36]}  Bxe3 {[%clk 0:00:52]} 0-1


[Site "https://www.chess.com"]

[Event "Titled Tuesday Blitz May 30 Late 2023"]
[White "Le Goff, Ronan"]
[Black "Annaberdiyev, Meylis"]
[WhiteFideId "612073"]
[BlackFideId "14000563"]
[WhiteElo "2275"]
[BlackElo "2416"]
[Result "1/2-1/2"]
[Round "06"]
[TimeControl "180+2"]
[Date "2023.05.31"]
[WhiteClock "0:00:38"]
[BlackClock "0:00:11"]

1. d4 {[%clk 0:03:00]}  Nf6 {[%clk 0:02:59]} 2. c4 {[%clk 0:02:59]}  g6 {[%clk 0:02:59]} 3. Nc3 {[%clk 0:02:54]}  Bg7 {[%clk 0:02:59]} 4. e4 {[%clk 0:02:54]}  d6 {[%clk 0:02:59]} 5. Be2 {[%clk 0:02:54]}  O-O {[%clk 0:02:59]} 6. Be3 {[%clk 0:02:54]}  e5 {[%clk 0:03:00]} 7. d5 {[%clk 0:02:54]}  Na6 {[%clk 0:02:53]} 8. Nf3 {[%clk 0:02:51]}  Ng4 {[%clk 0:02:49]} 9. Bg5 {[%clk 0:02:51]}  f6 {[%clk 0:02:50]} 10. Bd2 {[%clk 0:02:48]}  f5 {[%clk 0:02:48]} 11. Bg5 {[%clk 0:02:45]}  Qe8 {[%clk 0:02:28]} 12. h3 {[%clk 0:02:43]}  Nf6 {[%clk 0:02:20]} 13. Qc2 {[%clk 0:02:39]}  Nxe4 {[%clk 0:02:06]} 14. Nxe4 {[%clk 0:02:36]}  fxe4 {[%clk 0:02:07]} 15. Nd2 {[%clk 0:02:36]}  Nb4 {[%clk 0:02:06]} 16. Qb3 {[%clk 0:02:30]}  Nd3+ {[%clk 0:02:05]} 17. Bxd3 {[%clk 0:02:30]}  exd3 {[%clk 0:02:06]} 18. Qxd3 {[%clk 0:02:29]}  e4 {[%clk 0:02:06]} 19. Qc2 {[%clk 0:02:27]}  Qe5 {[%clk 0:01:33]} 20. Be3 {[%clk 0:02:25]}  Qxb2 {[%clk 0:01:34]} 21. Qxb2 {[%clk 0:02:24]}  Bxb2 {[%clk 0:01:34]} 22. Rb1 {[%clk 0:02:24]}  Bc3 {[%clk 0:01:35]} 23. Ke2 {[%clk 0:02:24]}  Bxd2 {[%clk 0:01:30]} 24. Kxd2 {[%clk 0:02:23]}  b6 {[%clk 0:01:30]} 25. g4 {[%clk 0:02:21]}  Rf3 {[%clk 0:01:27]} 26. Kc3 {[%clk 0:02:20]}  Bd7 {[%clk 0:01:11]} 27. Kd4 {[%clk 0:02:20]}  Re8 {[%clk 0:01:11]} 28. Rb3 {[%clk 0:02:12]}  c5+ {[%clk 0:01:09]} 29. dxc6 {[%clk 0:02:09]}  Bxc6 {[%clk 0:01:09]} 30. h4 {[%clk 0:02:00]}  Bd7 {[%clk 0:00:50]} 31. g5 {[%clk 0:01:53]}  Rf5 {[%clk 0:00:42]} 32. h5 {[%clk 0:01:51]}  gxh5 {[%clk 0:00:39]} 33. Rxh5 {[%clk 0:01:50]}  Ra5 {[%clk 0:00:40]} 34. Rh6 {[%clk 0:01:46]}  Re6 {[%clk 0:00:37]} 35. Rxe6 {[%clk 0:01:44]}  Bxe6 {[%clk 0:00:37]} 36. Kxe4 {[%clk 0:01:37]}  Bxc4 {[%clk 0:00:36]} 37. Rc3 {[%clk 0:01:36]}  d5+ {[%clk 0:00:34]} 38. Kd4 {[%clk 0:01:32]}  Rxa2 {[%clk 0:00:33]} 39. f4 {[%clk 0:01:27]}  Ra4 {[%clk 0:00:29]} 40. Ke5 {[%clk 0:01:27]}  b5 {[%clk 0:00:27]} 41. f5 {[%clk 0:01:22]}  b4 {[%clk 0:00:28]} 42. Rc1 {[%clk 0:01:21]}  b3 {[%clk 0:00:28]} 43. Bd4 {[%clk 0:01:21]}  Ra2 {[%clk 0:00:24]} 44. g6 {[%clk 0:01:12]}  hxg6 {[%clk 0:00:14]} 45. fxg6 {[%clk 0:01:10]}  Rg2 {[%clk 0:00:15]} 46. Kf6 {[%clk 0:01:04]}  b2 {[%clk 0:00:14]} 47. Rb1 {[%clk 0:01:02]}  Bd3 {[%clk 0:00:13]} 48. Rxb2 {[%clk 0:01:01]}  Rxg6+ {[%clk 0:00:13]} 49. Ke5 {[%clk 0:01:00]}  Rg5+ {[%clk 0:00:13]} 50. Ke6 {[%clk 0:00:59]}  Rg6+ {[%clk 0:00:12]} 51. Ke5 {[%clk 0:00:58]}  Bc4 {[%clk 0:00:11]} 52. Rb8+ {[%clk 0:00:54]}  Kh7 {[%clk 0:00:11]} 53. Rb7+ {[%clk 0:00:54]}  Kh6 {[%clk 0:00:11]} 54. Rxa7 {[%clk 0:00:51]}  Kh5 {[%clk 0:00:11]} 55. Rf7 {[%clk 0:00:49]}  Kg4 {[%clk 0:00:11]} 56. Rf4+ {[%clk 0:00:49]}  Kg3 {[%clk 0:00:11]} 57. Rf8 {[%clk 0:00:48]}  Kg2 {[%clk 0:00:11]} 58. Rf6 {[%clk 0:00:47]}  Rg4 {[%clk 0:00:11]} 59. Rf4 {[%clk 0:00:45]}  Rg8 {[%clk 0:00:11]} 60. Rf6 {[%clk 0:00:45]}  Re8+ {[%clk 0:00:11]} 61. Re6 {[%clk 0:00:45]}  Rg8 {[%clk 0:00:09]} 62. Kf4 {[%clk 0:00:43]}  Bd3 {[%clk 0:00:07]} 63. Re5 {[%clk 0:00:38]}  Be4 {[%clk 0:00:07]} 64. Rg5+ {[%clk 0:00:38]}  Rxg5 {[%clk 0:00:07]} 65. Kxg5 {[%clk 0:00:38]}  Kf3 {[%clk 0:00:08]} 66. Kf6 {[%clk 0:00:38]}  Ke2 {[%clk 0:00:08]} 67. Ke5 {[%clk 0:00:38]}  Kd3 {[%clk 0:00:09]} 68. Ba7 {[%clk 0:00:37]}  Kc4 {[%clk 0:00:10]} 69. Bg1 {[%clk 0:00:36]}  Kd3 {[%clk 0:00:11]} 70. Bd4 {[%clk 0:00:36]}  Kc4 {[%clk 0:00:12]} 71. Ba7 {[%clk 0:00:36]}  Kd3 {[%clk 0:00:11]} 72. Bd4 {[%clk 0:00:37]}  Kc4 {[%clk 0:00:11]} 73. Ba7 {[%clk 0:00:38]}  Kd3 {[%clk 0:00:11]} 74. Bd4 {[%clk 0:00:38]} 1/2-1/2


[Site "https://www.chess.com"]